Cogmind - Beta 15 @@@ ROGUE MODE // 2025.08.16 @ 01:23:05 Player: Dylan Result: Self-destructed Performance ------------- Evolutions (1) 500 Regions Visited (3) 600 Robots Destroyed (7) 35 Value Destroyed (223) 223 Prototype IDs (0) 0 Alien Tech Used (0) 0 Bonus (0) 0 TOTAL SCORE: 1358 Bonus ------- None Cogmind --------- Core Integrity 400/400 Matter 285/400 Energy 250/250 System Corruption 0% Temperature Cool (0) Movement Rolling (80) Location -9/Materials Parts ------- > --- POWER (2) -------- Ion Engine > --- PROPULSION (3) --- Wheel Wheel > --- UTILITY (2) ------ Small Storage Unit Medium Matter Pod > --- WEAPON (2) ------- EM Pulse Gun Grenade Launcher > --- INVENTORY (8) ---- Medium Laser Peak State ------------ > --- POWER ------------ Ion Engine > --- PROPULSION ------- Wheel Wheel > --- UTILITY ---------- Small Storage Unit Medium Matter Pod > --- WEAPON ----------- EM Pulse Gun Grenade Launcher > --- INVENTORY -------- Medium Laser [Rating: 7] Favorites ----------- Power Ion Engine Engine Ion Engine Propulsion Wheel Wheel Wheel Utility Small Storage Unit Storage Small Storage Unit Weapon EM Pulse Gun Energy Gun EM Pulse Gun Launcher Grenade Launcher Build | -11 -10 -10 -9 ------- Run | Yrd Mat Min Mat Slots Evolved 2 | . . . 2 Power 1 | . . . 1 Propulsion 1 | . . . 1 Utility . | . . . . Weapon . | . . . . Parts Attached 8 | 6 2 . . Power 1 | 1 . . . Engine 1 | 1 . . . Core . | . . . . Reactor . | . . . . Propulsion 2 | 2 . . . Treads . | . . . . Leg . | . . . . Wheel 2 | 2 . . . Hover . | . . . . Flight . | . . . . Utility 2 | 1 1 . . Device . | . . . . Storage 2 | 1 1 . . Processor . | . . . . Hackware . | . . . . Protection . | . . . . Artifact . | . . . . Weapon 3 | 2 1 . . Energy Gun 2 | 2 . . . Energy Cannon . | . . . . Ballistic Gun . | . . . . Ballistic Cannon . | . . . . Launcher 1 | . 1 . . Special Weapon . | . . . . Impact Weapon . | . . . . Slashing Weapon . | . . . . Piercing Weapon . | . . . . Special Melee Weapon . | . . . . Unidentified Prototypes . | . . . . Parts Lost . | . . . . Power . | . . . . Propulsion . | . . . . Utility . | . . . . Weapon . | . . . . Highest Loss Streak . | . . . . To Critical Strikes . | . . . . Average Backups . | . . 1 1 Power . | . . . . Propulsion . | . . . . Utility . | . . . . Weapon . | . . 1 1 Tool/Special . | . . . . Unused Backups . | . . . . Power . | . . . . Propulsion . | . . . . Utility . | . . . . Weapon . | . . . . Tool/Special . | . . . . Average Slot Usage (%) 92 | . 88 100 77 Engine 13 | . 14 14 11 Wheel 27 | . 28 28 22 Storage 22 | . 16 28 22 Energy Gun 16 | . 20 14 11 Launcher 10 | . 7 14 11 Peak Build Rating 7 | 6 7 7 7 Average Rating 6 | 4 6 7 7 On Entrance 5 | . 6 7 7 Naked Turns . | . . . . Heaviest Build 17 | 14 17 17 17 Greatest Support 20 | 20 20 20 20 Greatest Overweight (x) . | . . . . Average Overweight (x) . | . . . . Largest Inventory Capacity 8 | 8 8 8 8 Average Capacity 7 | 7 8 8 8 Most Carried 2 | 1 2 1 1 Average Carried . | . . 1 1 Final Capacity 8 | 8 8 8 8 Final Carried 1 | . 1 1 1 Class Distribution -------------------- 100% | Mutant Dominant Class ---------------- Mutant | -10/Materials Mutant | -10/Mines Mutant | -9/Materials Resources | -11 -10 -10 -9 ----------- Run | Yrd Mat Min Mat Matter Collected 415 | 252 18 145 . Remotely . | . . . . Salvage Created 171 | . 59 74 38 Parts 8 | . 1 5 2 Haulers Intercepted . | . . . . Recyclers Shooed . | . . . . Parts Field Recycled . | . . . . Retrieved Matter . | . . . . Parts Self-Destructed . | . . . . Prevented . | . . . . Kills | -11 -10 -10 -9 ------- Run | Yrd Mat Min Mat Combat Hostiles Destroyed 5 | . 2 2 1 Guns 1 | . 1 . . AOE 4 | . 1 2 1 Classes Destroyed 4 | . 2 1 1 Worker 1 | . . 1 . Builder 1 | . 1 . . Grunt 4 | . 2 2 . Sentry 1 | . . . 1 Best Kill Streak 3 | . 3 2 1 Combat Bots Only 2 | . 2 2 1 Max Kills in Single Turn 2 | . 2 1 1 Gunslinging . | . . . . Exploded 1 | . 1 1 1 Melee . | . . . . Uniques/NPCs Destroyed . | . . . . Combat | -11 -10 -10 -9 -------- Run | Yrd Mat Min Mat Hostile Shots Fired 22 | . 14 8 . Missed 8 | . 5 3 . Hits 14 | . 9 5 . Projectile 14 | . 9 5 . Damage Taken 228 | . 107 121 . Core 80 | . 15 65 . Absorbed by Shields . | . . . . Core Remaining (%) 84 | 100 . 68 . Volleys Fired 15 | . 5 8 2 Largest 2 | . 2 2 2 Hottest 70 | . 70 70 70 Shots Fired 30 | . 10 16 4 Gun 15 | . 5 8 2 Cannon . | . . . . Launcher 15 | . 5 8 2 Special . | . . . . Kinetic . | . . . . Thermal . | . . . . Explosive 15 | . 5 8 2 Electromagnetic 15 | . 5 8 2 Robot Hit Streak 3 | . 2 2 3 Robot Miss Streak 2 | . 1 2 1 Penetration Max . | . . . . Secondary Targets . | . . . . Shots Hit Robots 13 | . 3 7 3 Core Hits 12 | . 5 6 1 Critical Kills . | . . . . Critical Parts Destroyed . | . . . . Critical Strikes . | . . . . Melee Attacks . | . . . . Impact . | . . . . Slashing . | . . . . Piercing . | . . . . Sneak Attacks . | . . . . Combat Hostiles . | . . . . Follow-up Attacks . | . . . . Damage Inflicted 574 | . 282 245 47 Guns 106 | . 69 25 12 Cannons . | . . . . Explosions 468 | . 213 220 35 Melee . | . . . . Ramming . | . . . . Kinetic . | . . . . Thermal . | . . . . Explosive 468 | . 213 220 35 Electromagnetic 106 | . 69 25 12 Impact . | . . . . Slashing . | . . . . Piercing . | . . . . Highest Corruption . | . . . . Average Corruption . | . . . . Corruption Purged . | . . . . Corruption Blocked . | . . . . Overload Shots . | . . . . Overflow Damage 16 | . . 16 . Projectiles . | . . . . Explosions 16 | . . 16 . Melee . | . . . . Knockbacks . | . . . . Impact . | . . . . Kinetic . | . . . . Secondary . | . . . . Self-Inflicted Damage 71 | . 26 45 . Shots 3 | . 1 2 . Rammed . | . . . . Targets Rammed . | . . . . Kicked . | . . . . Crushed . | . . . . Highest Temperature 110 | . 55 110 23 Average Temperature 43 | . 33 51 23 Received Heat Transfer 72 | . 30 42 . Siege Activations . | . . . . Martial Activations . | . . . . Shielding Activations . | . . . . Robots Disrupted . | . . . . Combat Hostiles . | . . . . Robots Corrupted . | . . . . Combat Hostiles . | . . . . Parts Fried . | . . . . Impact Corruptions . | . . . . Robots Melted . | . . . . Combat Hostiles . | . . . . Parts Melted . | . . . . Heat Transferred . | . . . . Parts Sabotaged . | . . . . Parts Stolen . | . . . . Parts Stripped . | . . . . Power Chain Reactions . | . . . . Alert | -11 -10 -10 -9 ------- Run | Yrd Mat Min Mat Maximum Alert Level . | . . . . Low Security (%) 100 | 100 100 100 100 Level 1 . | . . . . Level 2 . | . . . . Level 3 . | . . . . Level 4 . | . . . . Level 5 . | . . . . High Security . | . . . . Max Security . | . . . . Peak Influence 87 | . 75 87 56 Initial 28 | . . 28 23 Average 18 | . 4 33 26 Influence Increases 232 | . 82 107 43 Destroy 0b10 Robot/C 100 | . 40 40 20 Destroy 0b10 Robot/NC 10 | . 5 5 . Destroy Leader 30 | . 10 10 10 Allied During Kill 8 | . . 6 2 Disable Machine 15 | . . 15 . Destroy Structure 69 | . 27 31 11 Influence Decreases 176 | . 7 121 48 Entered New Map 85 | . . 47 38 Time Decay 91 | . 7 74 10 Squads Dispatched 2 | . 2 . . Investigation . | . . . . Extermination . | . . . . Reinforcement 2 | . 2 . . Assault . | . . . . Garrison . | . . . . Intercept . | . . . . Searches Triggered . | . . . . Construction Impeded . | . . . . Haulers Reinforced . | . . . . Active Scanning Responses . | . . . . Cargo Convoy Interrupts . | . . . . Stealth | -11 -10 -10 -9 --------- Run | Yrd Mat Min Mat Distress Signals . | . . . . Communications Jammed . | . . . . Distress Signals . | . . . . Times Spotted 10 | . 7 2 1 Peak Tracking Total 3 | . 3 2 1 Tactical Retreats . | . . . . Traps | -11 -10 -10 -9 ------- Run | Yrd Mat Min Mat Traps Triggered . | . . . . Indirectly . | . . . . Trap Hack Attempts . | . . . . Triggered . | . . . . Disarmed . | . . . . Reprogrammed . | . . . . Reused . | . . . . Traps Extracted . | . . . . Installed . | . . . . Triggered . | . . . . Machines | -11 -10 -10 -9 ---------- Run | Yrd Mat Min Mat Machines Disabled 1 | . . 1 . Max in Single Turn 1 | . . 1 . Machines Repaired . | . . . . Machines Dismantled . | . . . . Machines Sabotaged . | . . . . Overloaded Fab Kills . | . . . . Hacking | -11 -10 -10 -9 --------- Run | Yrd Mat Min Mat Machines Accessed . | . . . . Terminals . | . . . . Fabricators . | . . . . Repair Stations . | . . . . Recycling Units . | . . . . Scanalyzers . | . . . . Garrison Access . | . . . . Total Hacks . | . . . . Successful . | . . . . Failed . | . . . . Catastrophic . | . . . . Database Lockouts . | . . . . Manual . | . . . . Terminals . | . . . . Fabricators . | . . . . Repair Stations . | . . . . Recycling Units . | . . . . Scanalyzers . | . . . . Garrison Access . | . . . . Terminal Hacks . | . . . . Fabricator Hacks . | . . . . Repair Station Hacks . | . . . . Recycling Unit Hacks . | . . . . Scanalyzer . | . . . . Garrison Access Hacks . | . . . . Unauthorized Hacks . | . . . . Terminals . | . . . . Fabricators . | . . . . Repair Stations . | . . . . Recycling Units . | . . . . Scanalyzers . | . . . . Garrison Access . | . . . . Data Cores Recovered . | . . . . Used . | . . . . Hacking Detections . | . . . . Full Trace Events . | . . . . Feedback Events . | . . . . Feedback Blocked . | . . . . Robot Schematics Acquired . | . . . . Robots Built . | . . . . Authchips . | . . . . Time . | . . . . Total Robot Build Rating . | . . . . Part Schematics Acquired . | . . . . Parts Built . | . . . . Authchips . | . . . . Time . | . . . . Total Part Build Rating . | . . . . Parts Repaired . | . . . . Time . | . . . . Parts Recycled . | . . . . Recycled Matter . | . . . . Retrieved Matter . | . . . . Retrieved Components . | . . . . Parts Scanalyzed . | . . . . Part Schematics Acquired . | . . . . Parts Damaged . | . . . . Bothacking | -11 -10 -10 -9 ------------ Run | Yrd Mat Min Mat Used RIF Installer . | . . . . Robots Hacked . | . . . . Non-combat . | . . . . Combat . | . . . . Robot Hacks Applied . | . . . . Relay Couplers Released . | . . . . Fabnet Peak Effective % . | . . . . Robots Rewired . | . . . . Allies Hacked . | . . . . Hacks Repelled . | . . . . Allies | -11 -10 -10 -9 -------- Run | Yrd Mat Min Mat Total Allies 2 | . . 2 . Largest Group 2 | . . 2 1 Highest-Rated Group 43 | . . 43 31 Highest-Rated Ally 31 | . . 31 31 Total Orders . | . . . . Ally Attacks 4 | . . . 4 Total Damage 64 | . . . 64 Kills . | . . . . Allies Corrupted . | . . . . Allies Melted . | . . . . Intel | -11 -10 -10 -9 ------- Run | Yrd Mat Min Mat Active Infowar (turns) . | . . . . Robot Analysis Total . | . . . . Derelict Logs Recovered 1 | . . 1 . Drone Launches . | . . . . Drone Recoveries . | . . . . Exploration | -11 -10 -10 -9 ------------- Run | Yrd Mat Min Mat Turns Passed 467 | 54 178 197 38 Spaces Moved 503 | 50 198 216 39 Core 4 | 4 . . . Treads . | . . . . Legs . | . . . . Wheels 499 | 46 198 216 39 Hover . | . . . . Flight . | . . . . Fastest Speed 50 | 50 80 80 80 Average Speed 79 | 77 80 80 80 Slowest Speed 80 | 80 80 80 80 Overloaded Moves . | . . . . Propulsion Burnouts . | . . . . Robots Hopped . | . . . . Potential Cave-ins . | . . . . Cave-ins Triggered . | . . . . Exploration Rate (%) 31 | 4 34 77 9 Regions Visited 3 Branch Regions 1 Pre-discovered Areas . | . . . . Known Exits Taken . | . . . . Unknown Exits Taken 3 | 1 1 1 . Scrap Searched 2 | . . 2 . Spaces Dug . | . . . . Terrain Destroyed 70 | . 29 31 10 Melee . | . . . . Projectile . | . . . . AOE 70 | . 29 31 10 Terrain Rammed . | . . . . Walls Destroyed . | . . . . Machines Disabled . | . . . . Actions | -11 -10 -10 -9 --------- Run | Yrd Mat Min Mat Total 535 | 64 207 223 41 Wait 3 | 3 . . . Move 500 | 49 197 215 39 Hop . | . . . . Pick Up 8 | 6 2 . . Fast Attach . | . . . . Attach 8 | 6 2 . . Detach 1 | . 1 . . Swap . | . . . . Drop . | . . . . Fire 15 | . 5 8 2 Melee . | . . . . Ram . | . . . . Kick . | . . . . Crush . | . . . . Escape Stasis . | . . . . Rewire . | . . . . Trap . | . . . . Miscellaneous . | . . . . Route ------- -11/Scrapyard -10/Materials -10/Mines -9/Materials History --------- Turn | Location | Event 2 | -11/Scrapyard | Met Revision 17 28 | -11/Scrapyard | Discovered new exit (range 16) 55 | -11/Scrapyard | Entered Materials 56 | -10/Materials | Met a group of wandering Federalists 137 | -10/Materials | Lost 3 allies 185 | -10/Materials | Discovered new exit (range 11) 233 | -10/Materials | Entered Mines 249 | -10/Mines | Learned Materials emergency access door positions 310 | -10/Mines | Build established: Mutant 414 | -10/Mines | Discovered new exit (range 15) 430 | -10/Mines | Entered Materials 430 | -9/Materials | Accompanied by 1 ally 430 | -9/Materials | Evolved 2 slots: Power x1, Propulsion x1 435 | -9/Materials | Led the pair of lost Derelicts to an unsafe place 468 | -9/Materials | Self-destructed Last Messages --------------- The unstable cave ceiling collapses. T-07 Excavator is excavating. R-06 Scavenger collects Corrupted Aluminum Leg. U-05 Engineer lays Concrete. U-05 Engineer builds a Wall. The unstable cave ceiling collapses. U-05 Engineer lays Concrete. U-05 Engineer builds a Wall. U-05 Engineer lays Concrete. EXIT=FOUND PARAMETERS=POWER+1,PROPULSION+1 LOCATION=UNKNOWN GOAL=ESCAPE Loading Materials emergency access points (x12)... T2-T6U(g): "This place looks worse than where we left..." T2-T6U(g): "Following you was a bad idea, I think." Y-45 Defender destroyed. Map ----- +----------------------------------------------------+ | | | | | | | | | | | | | | | | | | | ????????????????????????????????????????????????? | | ????????????????????????????????????????????????? | | ????????????????????????????????????????????????? | | ???????????????????????##???????????????????????? | | ??????################# ???????????????????????? | | ??????? # # ???"" #????????????????? | | ####???""""" # # ???R" #????????????????? | | #???""""" # # "" " #????????????????? | | #?? """"" + # #????????????????? | | ## """"" # # """ #????????????????? | | ## """"" # # """ #????????????????? | | ## """"" # # """ #????????????????? | | ## """"" # # #????????????????? | | ## # # ## #?????????????????? | | ########+###+#####+# #### #??????????? | | g [ +??????????? | | @% #??????????? | | #??????????? | | #################### ##+######??????????? | | #????????????????? # ????????????????? | | #????????????????"" ## #? "??????????????? | | ####???????????????""" ?# #?? ""?????????????? | | ?????????????????? """ ?# t#??? ""?????????????? | | ??????????????????? ?# #???? ????????????? | | ??????????????????? k ?#m #?????? ????????????? | | ???????????????????###+?? #???????#???????????? | | ????????????????????????? +???????????????????? | | ?+????+?????????????????? #???????????????????? | | ????????????????????????? #???????????????????? | | ????????????????????????? ^#???????????????????? | | ????????????????????????? #???????????????????? | | ????????????????????????? ????????????????????? | | ??????????????????????????????????+?????????????? | | ????????????????????????????????????????????????? | | ????????????????????????????????????????????????? | | ????????????????????????????????????????????????? | | ??????????????????????????????????+?????????????? | | ????????????????????????????????????????????????? | | ????????????????????????????????????????????????? | | ????????????????????????????????????????????????? | | ????????????????????????????????????????????????? | +----------------------------------------------------+ Best States ------------- Heat Dissipation 28 Energy Generation 10 Energy Capacity 250 Matter Stores 362 Matter Capacity 400 Sight Range 16 Terrain Scan Density 10 Evasion (%) 50 Item Schematics ----------------- None Robot Schematics ------------------ None Fabricated ------------ Nothing Repaired ---------- Nothing Alien Tech Used ----------------- None Achievements -------------- None Challenges ------------ None Game ------ Seed ThunderMetafiberBooster Manual? 0 Play Time 00:10:06 Cumulative 3.0 hours Start 2025.08.16 @ 01:13:29 End 2025.08.16 @ 01:23:05 Sessions 1 Manual Loads 0 Difficulty Rogue Special Mode None Game No. 12 Rogue 12 Adventurer 0 Explorer 0 Win Type - Total 0 Types 0/0/0/0/0/0/0/0/0/0 Lore% 0 Gallery% 5 Achievement% 10 Wizard Run 0 Options --------- Layout 1 ASCII 0 Keyboard 0 Movement Mouse Keybinds 0 Fullscreen 1 Font 24/Smallcaps Map View 25x17 Zoom Use 97% Tactical HUD 0 Map Filters NONE Filters NONE Steam 1 RUN: 5fe94f2b-ba99-4305-a5dc-6165941e65aa